[Event "Early-Titled-Tuesday-Blitz-July-09-2024"]
[Site "Chess.com"]
[Date "2024.07.09"]
[Round "9"]
[White "sergoy"]
[Black "David_Arutinian"]
[Result "0-1"]
[WhiteElo "2932"]
[BlackElo "2844"]
[TimeControl "180+1"]
[EndTime "9:47:21 PDT"]
[Termination "David_Arutinian won on time"]

1. d4 {[%clk 0:03:00.9]} 1... Nf6 {[%clk 0:02:59.3]} 2. c4 {[%clk 0:03:01.3]}
2... e6 {[%clk 0:02:59.5]} 3. Nf3 {[%clk 0:03:01.4]} 3... d5 {[%clk 0:02:59.8]}
4. Nc3 {[%clk 0:03:01.9]} 4... a6 {[%clk 0:03:00.4]} 5. cxd5 {[%clk 0:03:00.4]}
5... exd5 {[%clk 0:03:01.3]} 6. Bg5 {[%clk 0:02:59.8]} 6... Be6 {[%clk
0:03:01.9]} 7. e3 {[%clk 0:03:00]} 7... Nbd7 {[%clk 0:03:02.4]} 8. Bd3 {[%clk
0:02:57.8]} 8... Bd6 {[%clk 0:03:02.9]} 9. h3 {[%clk 0:02:58.1]} 9... c6 {[%clk
0:03:03.2]} 10. Bf4 {[%clk 0:02:58.5]} 10... Qb8 {[%clk 0:03:03.2]} 11. Qd2
{[%clk 0:02:58.8]} 11... h6 {[%clk 0:03:01.6]} 12. O-O {[%clk 0:02:57.6]} 12...
O-O {[%clk 0:03:00]} 13. Rac1 {[%clk 0:02:47.8]} 13... Re8 {[%clk 0:02:59.6]}
14. Rfe1 {[%clk 0:02:46.7]} 14... a5 {[%clk 0:02:58.9]} 15. Bxd6 {[%clk
0:02:34.6]} 15... Qxd6 {[%clk 0:02:58.4]} 16. Qc2 {[%clk 0:02:35.2]} 16... b6
{[%clk 0:02:49.5]} 17. Ne2 {[%clk 0:02:30.7]} 17... c5 {[%clk 0:02:45.5]} 18.
Bb5 {[%clk 0:02:29.9]} 18... Rec8 {[%clk 0:02:41.2]} 19. Qd1 {[%clk 0:02:27.8]}
19... Bf5 {[%clk 0:02:33.3]} 20. Ng3 {[%clk 0:02:23.8]} 20... Bh7 {[%clk
0:02:29]} 21. a4 {[%clk 0:02:20.3]} 21... c4 {[%clk 0:02:27.3]} 22. Nd2 {[%clk
0:02:15.1]} 22... Nf8 {[%clk 0:02:21.4]} 23. e4 {[%clk 0:02:11.9]} 23... dxe4
{[%clk 0:02:13.4]} 24. Nxc4 {[%clk 0:02:11.7]} 24... Qd8 {[%clk 0:02:10.5]} 25.
Qd2 {[%clk 0:01:48.8]} 25... Ne6 {[%clk 0:02:09.3]} 26. Rcd1 {[%clk 0:01:45.7]}
26... Rab8 {[%clk 0:01:33]} 27. d5 {[%clk 0:01:41.5]} 27... Nc5 {[%clk
0:01:32.8]} 28. Ne5 {[%clk 0:01:41.7]} 28... Qd6 {[%clk 0:01:30.3]} 29. Nc4
{[%clk 0:01:40.9]} 29... Qd8 {[%clk 0:01:30.1]} 30. Ne3 {[%clk 0:01:12.6]} 30...
Qd6 {[%clk 0:01:18]} 31. Nef5 {[%clk 0:00:49.7]} 31... Bxf5 {[%clk 0:01:14.4]}
32. Nxf5 {[%clk 0:00:49.8]} 32... Qe5 {[%clk 0:01:15.1]} 33. Ne3 {[%clk
0:00:42.6]} 33... Rd8 {[%clk 0:01:13.1]} 34. Bc4 {[%clk 0:00:23.2]} 34... h5
{[%clk 0:01:10.9]} 35. b3 {[%clk 0:00:21.6]} 35... Rd6 {[%clk 0:01:10]} 36. Qd4
{[%clk 0:00:17.3]} 36... Qg5 {[%clk 0:01:06.3]} 37. Qd2 {[%clk 0:00:10.8]} 37...
Qe5 {[%clk 0:01:02.4]} 38. Qd4 {[%clk 0:00:10.9]} 38... Qg5 {[%clk 0:01:02.3]}
39. Qd2 {[%clk 0:00:11]} 39... Qg6 {[%clk 0:00:42.3]} 40. b4 {[%clk 0:00:11.2]}
40... axb4 {[%clk 0:00:41.9]} 41. Qxb4 {[%clk 0:00:12.1]} 41... Ra8 {[%clk
0:00:33.8]} 42. Bb5 {[%clk 0:00:12.5]} 42... Qg5 {[%clk 0:00:32.8]} 43. Qc4
{[%clk 0:00:08.1]} 43... Qe5 {[%clk 0:00:28.6]} 44. Qd4 {[%clk 0:00:07.6]} 44...
Qxd4 {[%clk 0:00:25.3]} 45. Rxd4 {[%clk 0:00:08.5]} 45... Rad8 {[%clk
0:00:25.7]} 46. Red1 {[%clk 0:00:08.5]} 46... g6 {[%clk 0:00:25.4]} 47. Kf1
{[%clk 0:00:05.6]} 47... Kf8 {[%clk 0:00:25.3]} 48. Ke2 {[%clk 0:00:06.1]} 48...
Ke7 {[%clk 0:00:26]} 49. R4d2 {[%clk 0:00:05]} 49... Ra8 {[%clk 0:00:17.2]} 50.
Nc4 {[%clk 0:00:04.9]} 50... Nxa4 {[%clk 0:00:14.6]} 51. Nxd6 {[%clk 0:00:03.7]}
51... Nc3+ {[%clk 0:00:13.7]} 52. Ke1 {[%clk 0:00:04]} 52... Nxd1 {[%clk
0:00:13.9]} 53. Nxe4 {[%clk 0:00:03.6]} 53... Nxe4 {[%clk 0:00:12.9]} 54. Rxd1
{[%clk 0:00:02.8]} 54... Nc3 {[%clk 0:00:12.3]} 55. Bc6 {[%clk 0:00:03.4]} 55...
Nxd1 {[%clk 0:00:11.5]} 56. Bxa8 {[%clk 0:00:03.6]} 56... Nc3 {[%clk 0:00:12.2]}
57. Kd2 {[%clk 0:00:03.3]} 57... Ne4+ {[%clk 0:00:12.4]} 58. Ke3 {[%clk
0:00:03.6]} 58... Nd6 {[%clk 0:00:13.1]} 59. Kd4 {[%clk 0:00:03.8]} 59... f6
{[%clk 0:00:11.2]} 60. Bc6 {[%clk 0:00:03.9]} 60... h4 {[%clk 0:00:11.5]} 61.
Ke3 {[%clk 0:00:02.1]} 61... f5 {[%clk 0:00:10.7]} 62. Kd4 {[%clk 0:00:02.4]}
62... Kf6 {[%clk 0:00:11.3]} 63. Bd7 {[%clk 0:00:02.9]} 63... Ne4 {[%clk
0:00:10.2]} 64. Bb5 {[%clk 0:00:02.7]} 64... Nd6 {[%clk 0:00:08.9]} 65. Bd3
{[%clk 0:00:02.8]} 65... g5 {[%clk 0:00:09.2]} 66. f3 {[%clk 0:00:03.3]} 66...
Nf7 {[%clk 0:00:05.7]} 67. Bb5 {[%clk 0:00:03.1]} 67... Nd6 {[%clk 0:00:05.9]}
68. Bd3 {[%clk 0:00:03.8]} 68... f4 {[%clk 0:00:06.2]} 69. Bc2 {[%clk
0:00:04.1]} 69... Nf7 {[%clk 0:00:06.3]} 70. Bd3 {[%clk 0:00:04.5]} 70... Nd6
{[%clk 0:00:06.9]} 71. Bc2 {[%clk 0:00:03.8]} 71... Ne8 {[%clk 0:00:06.4]} 72.
Ba4 {[%clk 0:00:04]} 72... Nd6 {[%clk 0:00:06.7]} 73. Bb3 {[%clk 0:00:03.6]}
73... Nf5+ {[%clk 0:00:06.3]} 74. Kc4 {[%clk 0:00:03.7]} 74... Ke5 {[%clk
0:00:05.8]} 75. Kb5 {[%clk 0:00:04.1]} 75... Nd4+ {[%clk 0:00:05.3]} 0-1

[Event "Early-Titled-Tuesday-Blitz-July-09-2024"]
[Site "Chess.com"]
[Date "2024.07.09"]
[Round "9"]
[White "ansko1999"]
[Black "Mops_2004"]
[Result "0-1"]
[WhiteElo "2627"]
[BlackElo "2730"]
[TimeControl "180+1"]
[EndTime "9:47:22 PDT"]
[Termination "Mops_2004 won by checkmate"]

1. Nc3 {[%clk 0:03:00.9]} 1... c6 {[%clk 0:02:53]} 2. e4 {[%clk 0:02:59.6]} 2...
d5 {[%clk 0:02:53]} 3. d4 {[%clk 0:02:59.8]} 3... dxe4 {[%clk 0:02:52.9]} 4.
Nxe4 {[%clk 0:03:00.7]} 4... Nf6 {[%clk 0:02:53.1]} 5. Nxf6+ {[%clk 0:03:01.3]}
5... exf6 {[%clk 0:02:53.3]} 6. c3 {[%clk 0:03:02.1]} 6... Bd6 {[%clk
0:02:53.5]} 7. Bd3 {[%clk 0:03:02.6]} 7... O-O {[%clk 0:02:53.7]} 8. Ne2 {[%clk
0:03:03.3]} 8... Re8 {[%clk 0:02:53.7]} 9. O-O {[%clk 0:03:03.7]} 9... Na6
{[%clk 0:02:52.2]} 10. Ng3 {[%clk 0:03:02.2]} 10... Nc7 {[%clk 0:02:51.3]} 11.
Qf3 {[%clk 0:03:00.3]} 11... g6 {[%clk 0:02:49.8]} 12. Ne4 {[%clk 0:02:58.2]}
12... Be7 {[%clk 0:02:48.8]} 13. Bh6 {[%clk 0:02:49]} 13... f5 {[%clk
0:02:40.4]} 14. Nc5 {[%clk 0:02:29.6]} 14... b6 {[%clk 0:02:24.1]} 15. Nb3
{[%clk 0:02:15.4]} 15... Be6 {[%clk 0:02:23.8]} 16. c4 {[%clk 0:02:08.5]} 16...
Qd7 {[%clk 0:02:08.7]} 17. h3 {[%clk 0:01:50.4]} 17... a5 {[%clk 0:02:06.5]} 18.
a4 {[%clk 0:01:48]} 18... Na6 {[%clk 0:02:05.8]} 19. Rac1 {[%clk 0:01:33.6]}
19... Nb4 {[%clk 0:02:05.7]} 20. Bb1 {[%clk 0:01:33.9]} 20... Rad8 {[%clk
0:01:43.8]} 21. Rfe1 {[%clk 0:01:33.7]} 21... Bf6 {[%clk 0:01:39.2]} 22. g4
{[%clk 0:01:14.9]} 22... Bg7 {[%clk 0:00:55.8]} 23. Bxg7 {[%clk 0:01:10.8]}
23... Kxg7 {[%clk 0:00:56.3]} 24. gxf5 {[%clk 0:01:10.4]} 24... Bxf5 {[%clk
0:00:56.7]} 25. Bxf5 {[%clk 0:01:09.8]} 25... Qxf5 {[%clk 0:00:56.8]} 26. Qxf5
{[%clk 0:01:06.8]} 26... gxf5 {[%clk 0:00:56.9]} 27. Kf1 {[%clk 0:00:54]} 27...
Nd3 {[%clk 0:00:49.3]} 28. Rxe8 {[%clk 0:00:53.2]} 28... Rxe8 {[%clk 0:00:50.2]}
29. Rb1 {[%clk 0:00:42.5]} 29... Kf6 {[%clk 0:00:46]} 30. c5 {[%clk 0:00:35.4]}
30... bxc5 {[%clk 0:00:40.3]} 31. dxc5 {[%clk 0:00:35.7]} 31... Re4 {[%clk
0:00:22.6]} 32. Nxa5 {[%clk 0:00:29.9]} 32... Rxa4 {[%clk 0:00:22.4]} 33. Nxc6
{[%clk 0:00:25.9]} 33... Nxc5 {[%clk 0:00:21.1]} 34. b4 {[%clk 0:00:24.3]} 34...
Nd7 {[%clk 0:00:16.7]} 35. Rb2 {[%clk 0:00:16.8]} 35... Nb6 {[%clk 0:00:15.7]}
36. Ke2 {[%clk 0:00:15.5]} 36... Ra3 {[%clk 0:00:14.3]} 37. Nd4 {[%clk
0:00:13.3]} 37... Ke5 {[%clk 0:00:13.4]} 38. Nc2 {[%clk 0:00:12.8]} 38... Rxh3
{[%clk 0:00:10.1]} 39. Ne3 {[%clk 0:00:10.9]} 39... f4 {[%clk 0:00:08.8]} 40.
Ng4+ {[%clk 0:00:08]} 40... Kd4 {[%clk 0:00:05.7]} 41. Rd2+ {[%clk 0:00:05.1]}
41... Kc4 {[%clk 0:00:06.1]} 42. Ne5+ {[%clk 0:00:02.4]} 42... Kxb4 {[%clk
0:00:05.6]} 43. Nxf7 {[%clk 0:00:02.1]} 43... Nc4 {[%clk 0:00:04.7]} 44. Rd4
{[%clk 0:00:02.4]} 44... f3+ {[%clk 0:00:04.3]} 45. Kd3 {[%clk 0:00:01.5]} 45...
Kb3 {[%clk 0:00:03.3]} 46. Rxc4 {[%clk 0:00:02]} 46... Rh2 {[%clk 0:00:03.7]}
47. Rf4 {[%clk 0:00:01.8]} 47... Rxf2 {[%clk 0:00:03.7]} 48. Ng5 {[%clk
0:00:02.3]} 48... Rf1 {[%clk 0:00:02.1]} 49. Nxf3 {[%clk 0:00:02.8]} 49... Kb2
{[%clk 0:00:01.7]} 50. Nd2 {[%clk 0:00:03]} 50... Rxf4 {[%clk 0:00:01.5]} 51.
Ke3 {[%clk 0:00:02.2]} 51... Rg4 {[%clk 0:00:01.4]} 52. Kf3 {[%clk 0:00:02.6]}
52... Rg7 {[%clk 0:00:02.3]} 53. Ne4 {[%clk 0:00:03.1]} 53... Kc2 {[%clk
0:00:02.8]} 54. Nd6 {[%clk 0:00:02.7]} 54... Kd3 {[%clk 0:00:02.9]} 55. Nf5
{[%clk 0:00:03]} 55... Rf7 {[%clk 0:00:03.3]} 56. Kg4 {[%clk 0:00:03.5]} 56...
Rf6 {[%clk 0:00:02.7]} 57. Kg5 {[%clk 0:00:03.9]} 57... Rg6+ {[%clk 0:00:03.2]}
58. Kf4 {[%clk 0:00:03.5]} 58... Rb6 {[%clk 0:00:03.1]} 59. Ng3 {[%clk
0:00:03.4]} 59... Kd4 {[%clk 0:00:03.2]} 60. Nf5+ {[%clk 0:00:03.7]} 60... Kd5
{[%clk 0:00:03]} 61. Ne3+ {[%clk 0:00:04.5]} 61... Ke6 {[%clk 0:00:03.2]} 62.
Kg5 {[%clk 0:00:04.4]} 62... Kf7 {[%clk 0:00:03.4]} 63. Nf5 {[%clk 0:00:04.5]}
63... Rb5 {[%clk 0:00:03.6]} 64. Kg4 {[%clk 0:00:05]} 64... Kg6 {[%clk
0:00:03.3]} 65. Ne7+ {[%clk 0:00:05]} 65... Kf6 {[%clk 0:00:03.4]} 66. Nc8
{[%clk 0:00:05.3]} 66... Rd5 {[%clk 0:00:03]} 67. Nb6 {[%clk 0:00:05.5]} 67...
Rd4+ {[%clk 0:00:03.3]} 68. Kg3 {[%clk 0:00:05.3]} 68... h5 {[%clk 0:00:03.3]}
69. Kh3 {[%clk 0:00:04.1]} 69... Kg5 {[%clk 0:00:02.8]} 70. Kg3 {[%clk
0:00:04.5]} 70... h4+ {[%clk 0:00:03]} 71. Kf3 {[%clk 0:00:05.1]} 71... h3
{[%clk 0:00:02.9]} 72. Kg3 {[%clk 0:00:04.8]} 72... Rd3+ {[%clk 0:00:03.3]} 73.
Kh2 {[%clk 0:00:05.1]} 73... Kg4 {[%clk 0:00:03.8]} 74. Nc4 {[%clk 0:00:05.5]}
74... Kh4 {[%clk 0:00:03.1]} 75. Kg1 {[%clk 0:00:04.8]} 75... Kg3 {[%clk
0:00:02.4]} 76. Kh1 {[%clk 0:00:03.7]} 76... Rd1# {[%clk 0:00:02.2]} 0-1

[Event "Early-Titled-Tuesday-Blitz-July-09-2024"]
[Site "Chess.com"]
[Date "2024.07.09"]
[Round "9"]
[White "Alexchess1984"]
[Black "amanjazu"]
[Result "1-0"]
[WhiteElo "2782"]
[BlackElo "2584"]
[TimeControl "180+1"]
[EndTime "9:48:07 PDT"]
[Termination "Alexchess1984 won on time"]

1. e4 {[%clk 0:03:00.9]} 1... e6 {[%clk 0:02:54.4]} 2. d4 {[%clk 0:02:58.4]}
2... d5 {[%clk 0:02:55]} 3. e5 {[%clk 0:02:57.9]} 3... c5 {[%clk 0:02:54.3]} 4.
c3 {[%clk 0:02:58.3]} 4... Nc6 {[%clk 0:02:55]} 5. Nf3 {[%clk 0:02:58.6]} 5...
Nge7 {[%clk 0:02:53.6]} 6. Na3 {[%clk 0:02:57.7]} 6... Nf5 {[%clk 0:02:39.9]} 7.
Nc2 {[%clk 0:02:57.8]} 7... cxd4 {[%clk 0:02:38.6]} 8. cxd4 {[%clk 0:02:57.5]}
8... Be7 {[%clk 0:02:38.6]} 9. Bd3 {[%clk 0:02:57]} 9... Nh4 {[%clk 0:02:32.8]}
10. Nxh4 {[%clk 0:02:52.9]} 10... Bxh4 {[%clk 0:02:33.7]} 11. Qg4 {[%clk
0:02:49]} 11... g6 {[%clk 0:02:34.2]} 12. Bh6 {[%clk 0:02:45.1]} 12... Be7
{[%clk 0:02:34.6]} 13. O-O {[%clk 0:02:43.7]} 13... Bf8 {[%clk 0:02:32]} 14.
Bxf8 {[%clk 0:02:40.7]} 14... Kxf8 {[%clk 0:02:32.9]} 15. b4 {[%clk 0:02:33.9]}
15... f5 {[%clk 0:02:20.6]} 16. exf6 {[%clk 0:02:15.2]} 16... Qxf6 {[%clk
0:02:18.5]} 17. Rad1 {[%clk 0:01:57.8]} 17... Kg7 {[%clk 0:02:10.7]} 18. b5
{[%clk 0:01:48.4]} 18... Nd8 {[%clk 0:02:10]} 19. Qg3 {[%clk 0:01:47]} 19... Nf7
{[%clk 0:02:08.4]} 20. Ne3 {[%clk 0:01:42.9]} 20... h5 {[%clk 0:02:02.9]} 21.
Qc7 {[%clk 0:01:34.8]} 21... Qd8 {[%clk 0:01:51.4]} 22. Rc1 {[%clk 0:01:34.3]}
22... Re8 {[%clk 0:01:35.7]} 23. Rfe1 {[%clk 0:01:32.4]} 23... Qd6 {[%clk
0:01:15.1]} 24. Qxd6 {[%clk 0:01:19.4]} 24... Nxd6 {[%clk 0:01:16]} 25. Rc7+
{[%clk 0:01:18.8]} 25... Kf6 {[%clk 0:01:15.2]} 26. h4 {[%clk 0:01:09.9]} 26...
Rd8 {[%clk 0:00:35.5]} 27. a4 {[%clk 0:01:01.5]} 27... Bd7 {[%clk 0:00:31.2]}
28. g3 {[%clk 0:00:47.8]} 28... Rac8 {[%clk 0:00:31.1]} 29. Rec1 {[%clk
0:00:46.5]} 29... Ne8 {[%clk 0:00:30.3]} 30. R7c5 {[%clk 0:00:38.4]} 30... b6
{[%clk 0:00:24.8]} 31. R5c2 {[%clk 0:00:37.7]} 31... Rxc2 {[%clk 0:00:24.2]} 32.
Rxc2 {[%clk 0:00:38.6]} 32... Rc8 {[%clk 0:00:24.7]} 33. f4 {[%clk 0:00:34]}
33... Rxc2 {[%clk 0:00:16.6]} 34. Nxc2 {[%clk 0:00:33]} 34... Nd6 {[%clk
0:00:14.1]} 35. Ne3 {[%clk 0:00:33.2]} 35... Nb7 {[%clk 0:00:11.3]} 36. Kf2
{[%clk 0:00:31.7]} 36... Na5 {[%clk 0:00:11.8]} 37. Bc2 {[%clk 0:00:29]} 37...
Nc4 {[%clk 0:00:10.1]} 38. Nxc4 {[%clk 0:00:28.4]} 38... dxc4 {[%clk 0:00:11]}
39. Ke3 {[%clk 0:00:25.5]} 39... Bc8 {[%clk 0:00:11.2]} 40. Kd2 {[%clk
0:00:20.2]} 40... Bb7 {[%clk 0:00:11]} 41. Kc3 {[%clk 0:00:19.5]} 41... Bd5
{[%clk 0:00:11.6]} 42. Bb1 {[%clk 0:00:19.6]} 42... Kf7 {[%clk 0:00:05.9]} 43.
Ba2 {[%clk 0:00:15]} 43... Kf6 {[%clk 0:00:06.4]} 44. Bxc4 {[%clk 0:00:11]}
44... Kf5 {[%clk 0:00:06.8]} 45. Bd3+ {[%clk 0:00:09.6]} 45... Be4 {[%clk
0:00:04.9]} 46. Be2 {[%clk 0:00:06.4]} 46... Bd5 {[%clk 0:00:03.5]} 47. Kd3
{[%clk 0:00:06]} 47... Bb3 {[%clk 0:00:03.2]} 48. Ke3 {[%clk 0:00:04.8]} 48...
Bxa4 {[%clk 0:00:03.8]} 49. Bd3+ {[%clk 0:00:05.3]} 49... Kf6 {[%clk 0:00:04.4]}
50. Ke4 {[%clk 0:00:04.1]} 50... Bb3 {[%clk 0:00:04.8]} 51. Ke3 {[%clk
0:00:04.4]} 51... Bd5 {[%clk 0:00:05.5]} 52. Be2 {[%clk 0:00:04.5]} 52... Kf5
{[%clk 0:00:05.2]} 53. Bd1 {[%clk 0:00:04.7]} 53... Kf6 {[%clk 0:00:05.3]} 54.
Be2 {[%clk 0:00:04.7]} 54... Kf5 {[%clk 0:00:05.5]} 55. Bd3+ {[%clk 0:00:04.5]}
55... Kf6 {[%clk 0:00:05.7]} 56. Kf2 {[%clk 0:00:04.6]} 56... Bb7 {[%clk
0:00:04.7]} 57. Ke3 {[%clk 0:00:04.9]} 57... Bg2 {[%clk 0:00:04.4]} 58. Be4
{[%clk 0:00:04.3]} 58... Bf1 {[%clk 0:00:03.7]} 59. Bc6 {[%clk 0:00:04.6]} 59...
Bc4 {[%clk 0:00:03.8]} 60. Kf3 {[%clk 0:00:03.6]} 60... Bd5+ {[%clk 0:00:03.1]}
61. Ke3 {[%clk 0:00:02.3]} 61... Kf5 {[%clk 0:00:03]} 62. Bd7 {[%clk 0:00:02.1]}
62... Kg4 {[%clk 0:00:02.9]} 63. Kf2 {[%clk 0:00:02.8]} 63... Kf5 {[%clk
0:00:03.6]} 64. Bc8 {[%clk 0:00:03]} 64... Ke4 {[%clk 0:00:03.8]} 65. Bd7 {[%clk
0:00:03.6]} 65... Kxd4 {[%clk 0:00:04.4]} 66. Be8 {[%clk 0:00:04.1]} 66... Kc5
{[%clk 0:00:05.1]} 67. Bxg6 {[%clk 0:00:04.7]} 67... Kxb5 {[%clk 0:00:05.8]} 68.
Bxh5 {[%clk 0:00:05.4]} 68... Be4 {[%clk 0:00:05.3]} 69. Be2+ {[%clk 0:00:06.3]}
69... Kc5 {[%clk 0:00:05.4]} 70. Bf3 {[%clk 0:00:05.6]} 70... Bh7 {[%clk
0:00:05.3]} 71. g4 {[%clk 0:00:05.8]} 71... a5 {[%clk 0:00:06.2]} 72. g5 {[%clk
0:00:06.4]} 72... a4 {[%clk 0:00:06.8]} 73. Bd1 {[%clk 0:00:05.7]} 73... a3
{[%clk 0:00:07.1]} 74. Bb3 {[%clk 0:00:06.1]} 74... Bf5 {[%clk 0:00:07]} 75. h5
{[%clk 0:00:06.3]} 75... Kb4 {[%clk 0:00:07.8]} 76. Ba2 {[%clk 0:00:06]} 76...
Kc3 {[%clk 0:00:08.5]} 77. g6 {[%clk 0:00:06.4]} 77... Kb2 {[%clk 0:00:08.7]}
78. g7 {[%clk 0:00:06.8]} 78... Bh7 {[%clk 0:00:06.7]} 79. Bxe6 {[%clk 0:00:07]}
79... a2 {[%clk 0:00:07.4]} 80. Bxa2 {[%clk 0:00:06.6]} 80... Kxa2 {[%clk
0:00:08.3]} 81. f5 {[%clk 0:00:06.6]} 81... b5 {[%clk 0:00:08.3]} 82. f6 {[%clk
0:00:07.1]} 82... Bg8 {[%clk 0:00:08.7]} 83. h6 {[%clk 0:00:07.6]} 83... b4
{[%clk 0:00:09.4]} 84. h7 {[%clk 0:00:08.2]} 84... Bxh7 {[%clk 0:00:09.2]} 85.
f7 {[%clk 0:00:08.8]} 85... b3 {[%clk 0:00:09.8]} 86. f8=Q {[%clk 0:00:09.3]}
86... b2 {[%clk 0:00:10.7]} 87. Qa8+ {[%clk 0:00:08.9]} 87... Kb3 {[%clk
0:00:10.3]} 88. Qb7+ {[%clk 0:00:08.5]} 88... Ka2 {[%clk 0:00:10.1]} 89. Qa6+
{[%clk 0:00:08.9]} 89... Kb3 {[%clk 0:00:10.8]} 90. Qb5+ {[%clk 0:00:09.3]}
90... Ka3 {[%clk 0:00:11.4]} 91. Ke3 {[%clk 0:00:08.1]} 91... Ka2 {[%clk
0:00:11.3]} 92. Qa5+ {[%clk 0:00:07.8]} 92... Kb1 {[%clk 0:00:12.1]} 93. Kd2
{[%clk 0:00:07.5]} 93... Bg8 {[%clk 0:00:10.6]} 94. Qa3 {[%clk 0:00:06.2]} 1-0

[Event "Early-Titled-Tuesday-Blitz-July-09-2024"]
[Site "Chess.com"]
[Date "2024.07.09"]
[Round "10"]
[White "chrisclaireredfield"]
[Black "Mikhail_Golubev"]
[Result "0-1"]
[WhiteElo "2506"]
[BlackElo "2625"]
[TimeControl "180+1"]
[EndTime "9:51:47 PDT"]
[Termination "Mikhail_Golubev won by resignation"]

1. Nf3 {[%clk 0:03:00.9]} 1... d6 {[%clk 0:02:59.4]} 2. e4 {[%clk 0:02:58.5]}
2... c5 {[%clk 0:02:57.1]} 3. d4 {[%clk 0:02:58.3]} 3... cxd4 {[%clk 0:02:56.3]}
4. Nxd4 {[%clk 0:02:58.9]} 4... Nf6 {[%clk 0:02:56.3]} 5. Nc3 {[%clk 0:02:59.5]}
5... g6 {[%clk 0:02:55.4]} 6. Be3 {[%clk 0:02:58.9]} 6... Bg7 {[%clk 0:02:55.5]}
7. f3 {[%clk 0:02:59.4]} 7... Nc6 {[%clk 0:02:55.2]} 8. Bc4 {[%clk 0:02:57.6]}
8... O-O {[%clk 0:02:53.3]} 9. Qd2 {[%clk 0:02:57.4]} 9... Bd7 {[%clk 0:02:50]}
10. O-O-O {[%clk 0:02:57.2]} 10... Rc8 {[%clk 0:02:44.4]} 11. Bb3 {[%clk
0:02:57.3]} 11... Nxd4 {[%clk 0:02:44]} 12. Bxd4 {[%clk 0:02:57.6]} 12... b5
{[%clk 0:02:44.5]} 13. Kb1 {[%clk 0:02:57.6]} 13... a5 {[%clk 0:02:38.1]} 14. a4
{[%clk 0:02:55.4]} 14... bxa4 {[%clk 0:02:35.9]} 15. Nxa4 {[%clk 0:02:55.5]}
15... Bxa4 {[%clk 0:02:28.8]} 16. Bxa4 {[%clk 0:02:55.4]} 16... Rc4 {[%clk
0:02:28.7]} 17. Bxf6 {[%clk 0:02:48.7]} 17... Bxf6 {[%clk 0:02:22.9]} 18. Bb3
{[%clk 0:02:49.1]} 18... Rb4 {[%clk 0:02:18.6]} 19. Ka2 {[%clk 0:02:38.3]} 19...
Qb6 {[%clk 0:02:13.6]} 0-1

[Event "Early-Titled-Tuesday-Blitz-July-09-2024"]
[Site "Chess.com"]
[Date "2024.07.09"]
[Round "10"]
[White "Kildepiotr"]
[Black "shimastream"]
[Result "0-1"]
[WhiteElo "2705"]
[BlackElo "2906"]
[TimeControl "180+1"]
[EndTime "9:52:17 PDT"]
[Termination "shimastream won by resignation"]

1. Nf3 {[%clk 0:03:00.9]} 1... Nf6 {[%clk 0:02:55.8]} 2. g3 {[%clk 0:03:01.2]}
2... g6 {[%clk 0:02:53.8]} 3. Bg2 {[%clk 0:03:02.1]} 3... Bg7 {[%clk 0:02:54.7]}
4. O-O {[%clk 0:03:02.4]} 4... O-O {[%clk 0:02:55.6]} 5. d4 {[%clk 0:03:02.8]}
5... d6 {[%clk 0:02:55.4]} 6. Nbd2 {[%clk 0:03:02.9]} 6... c5 {[%clk 0:02:53.2]}
7. dxc5 {[%clk 0:03:02.4]} 7... dxc5 {[%clk 0:02:53.4]} 8. e4 {[%clk 0:03:03]}
8... Nc6 {[%clk 0:02:52.9]} 9. c3 {[%clk 0:03:03.5]} 9... b6 {[%clk 0:02:50.2]}
10. Qe2 {[%clk 0:03:01.8]} 10... a5 {[%clk 0:02:48.1]} 11. Rd1 {[%clk
0:03:01.3]} 11... Ba6 {[%clk 0:02:46.6]} 12. Qe1 {[%clk 0:03:01.8]} 12... Qc7
{[%clk 0:02:44.4]} 13. Bf1 {[%clk 0:03:01.1]} 13... Bb7 {[%clk 0:02:42.3]} 14.
Nc4 {[%clk 0:02:56.1]} 14... Nxe4 {[%clk 0:02:23.2]} 15. Bf4 {[%clk 0:02:40.8]}
15... e5 {[%clk 0:02:22.7]} 16. Qxe4 {[%clk 0:02:28]} 16... Nd4 {[%clk
0:02:14.2]} 17. Rxd4 {[%clk 0:02:09]} 17... Bxe4 {[%clk 0:02:08.1]} 18. Bxe5
{[%clk 0:02:02.4]} 18... Bxe5 {[%clk 0:02:07.5]} 19. Rxe4 {[%clk 0:02:02.4]}
19... Bf6 {[%clk 0:02:07.7]} 0-1

[Event "Early-Titled-Tuesday-Blitz-July-09-2024"]
[Site "Chess.com"]
[Date "2024.07.09"]
[Round "10"]
[White "VacheH009"]
[Black "Zavgorodniy_Sergiy"]
[Result "0-1"]
[WhiteElo "2524"]
[BlackElo "2669"]
[TimeControl "180+1"]
[EndTime "9:52:27 PDT"]
[Termination "Zavgorodniy_Sergiy won by resignation"]

1. c4 {[%clk 0:03:00.9]} 1... Nf6 {[%clk 0:02:59.5]} 2. Nc3 {[%clk 0:02:59.5]}
2... d6 {[%clk 0:02:57.7]} 3. g3 {[%clk 0:02:55]} 3... e5 {[%clk 0:02:57.5]} 4.
Bg2 {[%clk 0:02:54.8]} 4... Be7 {[%clk 0:02:58.1]} 5. Nf3 {[%clk 0:02:54.7]}
5... O-O {[%clk 0:02:58.2]} 6. O-O {[%clk 0:02:55.2]} 6... c6 {[%clk 0:02:57.7]}
7. d3 {[%clk 0:02:53.1]} 7... h6 {[%clk 0:02:57.1]} 8. b4 {[%clk 0:02:51.2]}
8... Be6 {[%clk 0:02:57.5]} 9. b5 {[%clk 0:02:50.9]} 9... Nbd7 {[%clk
0:02:57.6]} 10. bxc6 {[%clk 0:02:46.4]} 10... bxc6 {[%clk 0:02:58.5]} 11. Rb1
{[%clk 0:02:46.4]} 11... d5 {[%clk 0:02:58.7]} 12. cxd5 {[%clk 0:02:41.1]} 12...
cxd5 {[%clk 0:02:59.6]} 13. Bb2 {[%clk 0:02:21.5]} 13... d4 {[%clk 0:02:58.9]}
14. Ne4 {[%clk 0:02:17.3]} 14... Nxe4 {[%clk 0:02:59.1]} 15. dxe4 {[%clk
0:02:18.2]} 15... Bxa2 {[%clk 0:02:56.6]} 16. Ra1 {[%clk 0:02:17.5]} 16... Be6
{[%clk 0:02:53.7]} 17. Ra5 {[%clk 0:02:17]} 17... Qxa5 {[%clk 0:02:50.5]} 18.
Ne1 {[%clk 0:01:46.9]} 18... Rab8 {[%clk 0:02:44.3]} 19. Nd3 {[%clk 0:01:47.8]}
19... Nc5 {[%clk 0:02:38.9]} 20. Bc1 {[%clk 0:01:45]} 20... Nxd3 {[%clk
0:02:37.7]} 21. exd3 {[%clk 0:01:45.9]} 21... Rfc8 {[%clk 0:02:31.4]} 22. Bd2
{[%clk 0:01:44.5]} 22... Qa2 {[%clk 0:02:31.1]} 23. f4 {[%clk 0:01:43.8]} 23...
Rb2 {[%clk 0:02:27.5]} 0-1

[Event "Early-Titled-Tuesday-Blitz-July-09-2024"]
[Site "Chess.com"]
[Date "2024.07.09"]
[Round "10"]
[White "kripri"]
[Black "Barmen_EV"]
[Result "0-1"]
[WhiteElo "2311"]
[BlackElo "2505"]
[TimeControl "180+1"]
[EndTime "9:52:39 PDT"]
[Termination "Barmen_EV won by resignation"]

1. f3 {[%clk 0:02:44.9]} 1... e5 {[%clk 0:02:58.5]} 2. g3 {[%clk 0:02:44.8]}
2... d5 {[%clk 0:02:58]} 3. Bg2 {[%clk 0:02:44.9]} 3... h5 {[%clk 0:02:58.4]} 4.
Nh3 {[%clk 0:02:41]} 4... h4 {[%clk 0:02:57.4]} 5. g4 {[%clk 0:02:41]} 5... f5
{[%clk 0:02:57.8]} 6. gxf5 {[%clk 0:02:31.1]} 6... Bxf5 {[%clk 0:02:58.7]} 7.
Nf2 {[%clk 0:02:31]} 7... h3 {[%clk 0:02:57.6]} 8. Bf1 {[%clk 0:02:30.5]} 8...
Qh4 {[%clk 0:02:58.2]} 9. Nc3 {[%clk 0:02:27]} 9... d4 {[%clk 0:02:39.2]} 10.
Ne4 {[%clk 0:02:26.5]} 10... Bxe4 {[%clk 0:02:37.6]} 11. fxe4 {[%clk 0:02:27.4]}
11... Nf6 {[%clk 0:02:24.3]} 12. d3 {[%clk 0:02:27.1]} 12... Ng4 {[%clk
0:02:23.2]} 13. c3 {[%clk 0:02:07]} 13... Nxf2 {[%clk 0:02:21.3]} 14. Qa4+
{[%clk 0:02:05.7]} 14... Nc6 {[%clk 0:02:19.6]} 15. Rg1 {[%clk 0:02:04.9]} 15...
Nxd3+ {[%clk 0:02:05]} 16. Kd2 {[%clk 0:01:59.7]} 16... Nc5 {[%clk 0:02:05]} 17.
Qb5 {[%clk 0:01:58.6]} 17... Nxe4+ {[%clk 0:02:03.5]} 18. Kd1 {[%clk 0:01:58.6]}
18... O-O-O {[%clk 0:01:59.6]} 0-1